Workbook

Sheet ИЖ 6-8 2012
H3: П р о т о к о л | X3: г. Барнаул | AA3: 14-17.11.2018
E4: ПЕРВЕНСТВО АЛТАЙСКОГО КРАЯ ПО СПОРТИВНОЙ АЭРОБИКЕ "СОЗВЕЗДИЕ СИБИРИ"
E5: ФИНАЛ
X6: ИЖ 6-8 лет (2012)
A8: № | B8: Участник | C8: Клуб | D8: Регион | E8: Исполнение | L8: Артистичность | S8: Сложность | V8: Пирамида | W8: Сбавки | AA8: Общий балл | AB8: Место
E9: 1 | F9: 2 | G9: 3 | H9: 4 | I9: МIN "А" | J9: МАХ "А" | K9: СР | L9: 5 | M9: 6 | N9: 7 | O9: 8 | P9: МIN "И" | Q9: МАХ "И" | R9: СР | S9: 9 | T9: 10 | U9: СР | V9: 1 | W9: Э | X9: Л | Y9: Глав. судья | Z9: общ
A10: 2 | B10: Хлыстунова Анна | C10: МБУ СП "СШ "Рубцовск" | D10: Рубцовск Алтайский край | E10: 7.4 | F10: 7.4 | G10: 6.3 | H10: 7.7 | I10: =MIN(E10,F10,G10,H10) -> 6.3 | J10: =MAX(E10,F10,G10,H10) -> 7.7 | K10: =(E10+F10+G10+H10-I10-J10)/2 -> 7.4 | L10: 6.3 | M10: 7.4 | N10: 7 | O10: 6.7 | P10: =MIN(L10,M10,N10,O10) -> 6.3 | Q10: =MAX(L10,M10,N10,O10) -> 7.4 | R10: =(L10+M10+N10+O10-P10-Q10)/2 -> 6.85 | S10: 1.6 | T10: 1.6 | U10: =(S10+T10)/4 -> 0.8 | Z10: =W10+X10+Y10 -> 0 | AA10: =K10+R10+U10+V10-Z10 -> 15.05 | AB10: =RANK(AA10,$AA$9:$AA$11,0) -> 1
A11: 1 | B11: Соколова Мария | C11: с/к " Реванш" | D11: Барнаул Алтайский край | E11: 7.1 | F11: 7.1 | G11: 6 | H11: 7.6 | I11: =MIN(E11,F11,G11,H11) -> 6 | J11: =MAX(E11,F11,G11,H11) -> 7.6 | K11: =(E11+F11+G11+H11-I11-J11)/2 -> 7.1 | L11: 6.5 | M11: 7.2 | N11: 6.9 | O11: 6.8 | P11: =MIN(L11,M11,N11,O11) -> 6.5 | Q11: =MAX(L11,M11,N11,O11) -> 7.2 | R11: =(L11+M11+N11+O11-P11-Q11)/2 -> 6.85 | S11: 1.5 | T11: 1.5 | U11: =(S11+T11)/4 -> 0.75 | Z11: =W11+X11+Y11 -> 0 | AA11: =K11+R11+U11+V11-Z11 -> 14.7 | AB11: =RANK(AA11,$AA$9:$AA$11,0) -> 2
B12: Главный судья: | I12: Л.Н. Ляшенко | O12: Главный секретарь: | V12: Т.В.Хоружева
B14: Заместитель главного судьи: | I14: Н.К. Гринина | O14: Заместитель главного секретаря | V14: Д.А.Гринина

Sheet ИЖ 6-8 2011
H3: П р о т о к о л | X3: г. Барнаул | AA3: 14-17.11.2018
E4: ПЕРВЕНСТВО АЛТАЙСКОГО КРАЯ ПО СПОРТИВНОЙ АЭРОБИКЕ "СОЗВЕЗДИЕ СИБИРИ"
E5: ФИНАЛ
X6: ИЖ 6-8 лет (2011)
A8: № | B8: Участник | C8: Клуб | D8: Регион | E8: Исполнение | L8: Артистичность | S8: Сложность | V8: Пирамида | W8: Сбавки | AA8: Общий балл | AB8: Место
E9: 1 | F9: 2 | G9: 3 | H9: 4 | I9: МIN "А" | J9: МАХ "А" | K9: СР | L9: 5 | M9: 6 | N9: 7 | O9: 8 | P9: МIN "И" | Q9: МАХ "И" | R9: СР | S9: 9 | T9: 10 | U9: СР | V9: 1 | W9: Э | X9: Л | Y9: Глав. судья | Z9: общ
A10: 3 | B10: Астахова Софья | C10: МБУ СП "СШ №6", АКООПРС "Город Мастеров" | D10: Барнаул Алтайский край | E10: 8 | F10: 7.4 | G10: 8.2 | H10: 8 | I10: =MIN(E10,F10,G10,H10) -> 7.4 | J10: =MAX(E10,F10,G10,H10) -> 8.2 | K10: =(E10+F10+G10+H10-I10-J10)/2 -> 8 | L10: 7.5 | M10: 7.6 | N10: 8.1 | O10: 7.9 | P10: =MIN(L10,M10,N10,O10) -> 7.5 | Q10: =MAX(L10,M10,N10,O10) -> 8.1 | R10: =(L10+M10+N10+O10-P10-Q10)/2 -> 7.75 | S10: 2.1 | T10: 2.1 | U10: =(S10+T10)/4 -> 1.05 | Z10: =W10+X10+Y10 -> 0 | AA10: =K10+R10+U10+V10-Z10 -> 16.8 | AB10: =RANK(AA10,$AA$9:$AA$17,0) -> 1
A11: 12 | B11: Шмаль Полина | C11: МБУ СП «СШ « Победа» | D11: Барнаул Алтайский край | E11: 7.8 | F11: 7.8 | G11: 8.2 | H11: 8.3 | I11: 7.8 | J11: 8.3 | K11: 8 | L11: 8 | M11: 7.4 | N11: 7.7 | O11: 7.7 | P11: 7.4 | Q11: 8 | R11: 7.7 | S11: 2.1 | T11: 2.1 | U11: 1.05 | Z11: 0 | AA11: 16.75 | AB11: 2
A12: 11 | B12: Перелыгина Полина | C12: МБУ СП "СШ №6", АКООПРС "Город Мастеров" | D12: Барнаул Алтайский край | E12: 7.6 | F12: 7.4 | G12: 7.6 | H12: 7.8 | I12: 7.4 | J12: 7.8 | K12: 7.6 | L12: 7.8 | M12: 7.4 | N12: 7.6 | O12: 7.8 | P12: 7.4 | Q12: 7.8 | R12: 7.7 | S12: 2.1 | T12: 2.1 | U12: 1.05 | Z12: 0 | AA12: 16.35 | AB12: 3
A13: 13 | B13: Лобищева Валерия | C13: МБУ СП "СШ №6", АКООПРС "Город Мастеров" | D13: Барнаул Алтайский край | E13: 7.3 | F13: 7 | G13: 7.6 | H13: 7.8 | I13: 7 | J13: 7.8 | K13: 7.45 | L13: 7.7 | M13: 7.5 | N13: 7.8 | O13: 7.9 | P13: 7.5 | Q13: 7.9 | R13: 7.75 | S13: 2.1 | T13: 2.1 | U13: 1.05 | Z13: 0 | AA13: 16.25 | AB13: 4
A14: 15 | B14: Дианова Янина | C14: МБУ СП "СШ №6", АКООПРС "Город Мастеров" | D14: Барнаул Алтайский край | E14: 7.4 | F14: 7.3 | G14: 7.5 | H14: 7.5 | I14: 7.3 | J14: 7.5 | K14: 7.45 | L14: 7.4 | M14: 7.4 | N14: 7.5 | O14: 7.7 | P14: 7.4 | Q14: 7.7 | R14: 7.45 | S14: 2.1 | T14: 2.1 | U14: 1.05 | Z14: 0 | AA14: 15.95 | AB14: 5
A15: 2 | B15: Лымарь Яна | C15: КГБУ СП "СШ"Жемчужина Алтая" | D15: Барнаул Алтайский край | E15: 7.5 | F15: 7 | G15: 7.2 | H15: 7.4 | I15: 7 | J15: 7.5 | K15: 7.3 | L15: 7.2 | M15: 7.5 | N15: 7 | O15: 7.6 | P15: 7 | Q15: 7.6 | R15: 7.35 | S15: 2.1 | T15: 2.1 | U15: 1.05 | Z15: 0 | AA15: 15.7 | AB15: 6
A16: 14 | B16: Иляхина Анна | C16: МБУ СП "СШ №6", АКООПРС "Город Мастеров" | D16: Барнаул Алтайский край | E16: 7.3 | F16: 7.1 | G16: 7.3 | H16: 7.5 | I16: 7.1 | J16: 7.5 | K16: 7.3 | L16: 7.7 | M16: 7.2 | N16: 7.3 | O16: 7.7 | P16: 7.2 | Q16: 7.7 | R16: 7.5 | S16: 1.7 | T16: 1.7 | U16: 0.85 | Z16: 0 | AA16: 15.65 | AB16: 7
A17: 5 | B17: Смирнова Арина | C17: ДООЦ Спутник | D17: Новосибирск Новосибирская область | E17: 7.1 | F17: 7 | G17: 7.4 | H17: 7.1 | I17: 7 | J17: 7.4 | K17: 7.1 | L17: 7.7 | M17: 7.3 | N17: 7.2 | O17: 7.5 | P17: 7.2 | Q17: 7.7 | R17: 7.4 | S17: 1.7 | T17: 1.7 | U17: 0.85 | Z17: 0 | AA17: 15.35 | AB17: 8
B18: Главный судья: | I18: Л.Н. Ляшенко | O18: Главный секретарь: | V18: Т.В.Хоружева
B20: Заместитель главного судьи: | I20: Н.К. Гринина | O20: Заместитель главного секретаря | V20: Д.А.Гринина

Sheet ИЖ 6-8 2010
H3: П р о т о к о л | X3: г. Барнаул | AA3: 14-17.11.2018
E4: ПЕРВЕНСТВО АЛТАЙСКОГО КРАЯ ПО СПОРТИВНОЙ АЭРОБИКЕ "СОЗВЕЗДИЕ СИБИРИ"
E5: ФИНАЛ
X6: ИЖ 6-8 лет (2010)
A8: № | B8: Участник | C8: Клуб | D8: Регион | E8: Исполнение | L8: Артистичность | S8: Сложность | V8: Пирамида | W8: Сбавки | AA8: Общий балл | AB8: Место
E9: 1 | F9: 2 | G9: 3 | H9: 4 | I9: МIN "А" | J9: МАХ "А" | K9: СР | L9: 5 | M9: 6 | N9: 7 | O9: 8 | P9: МIN "И" | Q9: МАХ "И" | R9: СР | S9: 9 | T9: 10 | U9: СР | V9: 1 | W9: Э | X9: Л | Y9: Глав. судья | Z9: общ
A10: 17 | B10: Кузнецова Дарья | C10: МБУ СП «СШ « Победа» | D10: Барнаул Алтайский край | E10: 8.3 | F10: 8 | G10: 8.4 | H10: 8.4 | I10: =MIN(E10,F10,G10,H10) -> 8 | J10: =MAX(E10,F10,G10,H10) -> 8.4 | K10: =(E10+F10+G10+H10-I10-J10)/2 -> 8.35 | L10: 8.4 | M10: 7.9 | N10: 7.7 | O10: 7.9 | P10: =MIN(L10,M10,N10,O10) -> 7.7 | Q10: =MAX(L10,M10,N10,O10) -> 8.4 | R10: =(L10+M10+N10+O10-P10-Q10)/2 -> 7.9 | S10: 2.1 | T10: 2.1 | U10: =(S10+T10)/4 -> 1.05 | Z10: =W10+X10+Y10 -> 0 | AA10: =K10+R10+U10+V10-Z10 -> 17.3 | AB10: =RANK(AA10,$AA$9:$AA$18,0) -> 1
A11: 3 | B11: Родионова Софья | C11: МБУ СП "СШ №6", АКООПРС "Город Мастеров" | D11: Барнаул Алтайский край | E11: 7.6 | F11: 7.4 | G11: 8.2 | H11: 7.8 | I11: 7.4 | J11: 8.2 | K11: 7.7 | L11: 8.4 | M11: 7.5 | N11: 7.9 | O11: 7.9 | P11: 7.5 | Q11: 8.4 | R11: 7.9 | S11: 2.1 | T11: 2.1 | U11: 1.05 | Z11: 0 | AA11: 16.65 | AB11: 2
A12: 19 | B12: Тоскуева Анна | C12: МБУ СП «СШ « Победа» | D12: Барнаул Алтайский край | E12: 8.1 | F12: 7.8 | G12: 8.3 | H12: 7.7 | I12: 7.7 | J12: 8.3 | K12: 7.95 | L12: 7.5 | M12: 7.9 | N12: 7.4 | O12: 7.7 | P12: 7.4 | Q12: 7.9 | R12: 7.6 | S12: 2.1 | T12: 2.1 | U12: 1.05 | Z12: 0 | AA12: 16.6 | AB12: 3
A13: 4 | B13: Адарич Анна | C13: КГБУ СП "СШ"Жемчужина Алтая" | D13: Барнаул Алтайский край | E13: 7.4 | F13: 7.5 | G13: 8 | H13: 7.5 | I13: 7.4 | J13: 8 | K13: 7.5 | L13: 7.9 | M13: 7.8 | N13: 7.8 | O13: 8 | P13: 7.8 | Q13: 8 | R13: 7.85 | S13: 2.1 | T13: 2.1 | U13: 1.05 | Z13: 0 | AA13: 16.4 | AB13: 4
A14: 7 | B14: Шлыкова Валерия | C14: КГБУ СП "СШ"Жемчужина Алтая" | D14: Камень-на-Оби Алтайский край | E14: 7.6 | F14: 7.3 | G14: 7.8 | H14: 7.9 | I14: 7.3 | J14: 7.9 | K14: 7.7 | L14: 8.3 | M14: 7.4 | N14: 7.4 | O14: 7.6 | P14: 7.4 | Q14: 8.3 | R14: 7.5 | S14: 2.1 | T14: 2.1 | U14: 1.05 | Z14: 0 | AA14: 16.25 | AB14: 5
A15: 14 | B15: Погорелая Екатерина | C15: МБУ СП «СШ « Победа» | D15: Барнаул Алтайский край | E15: 8 | F15: 7.2 | G15: 7.8 | H15: 7.5 | I15: 7.2 | J15: 8 | K15: 7.65 | L15: 7.6 | M15: 7.4 | N15: 7.5 | O15: 7.6 | P15: 7.4 | Q15: 7.6 | R15: 7.55 | S15: 2.1 | T15: 2.1 | U15: 1.05 | Z15: 0 | AA15: 16.25 | AB15: 5
A16: 18 | B16: Гриднева Анастасия | C16: МБУ СП "СШ №6", АКООПРС "Город Мастеров" | D16: Барнаул Алтайский край | E16: 7.2 | F16: 7.2 | G16: 7.6 | H16: 7.6 | I16: 7.2 | J16: 7.6 | K16: 7.4 | L16: 7.5 | M16: 7.3 | N16: 7.7 | O16: 7.8 | P16: 7.3 | Q16: 7.8 | R16: 7.6 | S16: 2.1 | T16: 2.1 | U16: 1.05 | Z16: 0 | AA16: 16.05 | AB16: 7
A17: 10 | B17: Жданова Юлия | C17: КГБУ СП "СШ"Жемчужина Алтая" | D17: Барнаул Алтайский край | E17: 7.2 | F17: 7.2 | G17: 7.7 | H17: 7.4 | I17: 7.2 | J17: 7.7 | K17: 7.3 | L17: 7.5 | M17: 7.9 | N17: 7.5 | O17: 7.5 | P17: 7.5 | Q17: 7.9 | R17: 7.5 | S17: 2.1 | T17: 2.1 | U17: 1.05 | Z17: 0 | AA17: 15.85 | AB17: 8
A18: 16 | B18: Морозова Василиса | C18: ДООЦ Спутник | D18: Новосибирск Новосибирская область | E18: 7.3 | F18: 7.2 | G18: 7.6 | H18: 7.3 | I18: 7.2 | J18: 7.6 | K18: 7.3 | L18: 7.4 | M18: 7.3 | N18: 7.3 | O18: 7.7 | P18: 7.3 | Q18: 7.7 | R18: 7.35 | S18: 1.9 | T18: 1.9 | U18: 0.95 | Z18: 0 | AA18: 15.6 | AB18: 9
B19: Главный судья: | I19: Л.Н. Ляшенко | O19: Главный секретарь: | V19: Т.В.Хоружева
B21: Заместитель главного судьи: | I21: Н.К. Гринина | O21: Заместитель главного секретаря | V21: Д.А.Гринина

Sheet ТР 6-8
H3: П р о т о к о л | X3: г. Барнаул | AA3: 14-17.11.2018
E4: ПЕРВЕНСТВО АЛТАЙСКОГО КРАЯ ПО СПОРТИВНОЙ АЭРОБИКЕ "СОЗВЕЗДИЕ СИБИРИ"
E5: ФИНАЛ
X6: ТР 6-8 лет
A8: № | B8: Участник | C8: Клуб | D8: Регион | E8: Исполнение | L8: Артистичность | S8: Сложность | V8: Пирамида | W8: Сбавки | AA8: Общий балл | AB8: Место
E9: 1 | F9: 2 | G9: 3 | H9: 4 | I9: МIN "А" | J9: МАХ "А" | K9: СР | L9: 5 | M9: 6 | N9: 7 | O9: 8 | P9: МIN "И" | Q9: МАХ "И" | R9: СР | S9: 9 | T9: 10 | U9: СР | V9: 1 | W9: Э | X9: Л | Y9: Глав. судья | Z9: общ
A10: 1 | B10: Кузнецова Дарья Струкова Анастасия Кершман Дарья | C10: МБУ СП «СШ « Победа» | D10: Барнаул Алтайский край | E10: 7.8 | F10: 8 | G10: 8.2 | H10: 8.3 | I10: =MIN(E10,F10,G10,H10) -> 7.8 | J10: =MAX(E10,F10,G10,H10) -> 8.3 | K10: =(E10+F10+G10+H10-I10-J10)/2 -> 8.1 | L10: 7.7 | M10: 7.8 | N10: 7.9 | O10: 8 | P10: =MIN(L10,M10,N10,O10) -> 7.7 | Q10: =MAX(L10,M10,N10,O10) -> 8 | R10: =(L10+M10+N10+O10-P10-Q10)/2 -> 7.85 | S10: 2.1 | T10: 2.1 | U10: =(S10+T10)/4 -> 1.05 | Z10: =W10+X10+Y10 -> 0 | AA10: =K10+R10+U10+V10-Z10 -> 17 | AB10: =RANK(AA10,$AA$9:$AA$17,0) -> 1
A11: 6 | B11: Шмаль Полина Черенцева София Головачева Полина | C11: МБУ СП «СШ « Победа» | D11: Барнаул Алтайский край | E11: 8 | F11: 7.5 | G11: 8 | H11: 8.1 | I11: 7.5 | J11: 8.1 | K11: 8 | L11: 7.9 | M11: 7.7 | N11: 7.7 | O11: 8 | P11: 7.7 | Q11: 8 | R11: 7.8 | S11: 2.1 | T11: 2.1 | U11: 1.05 | Z11: 0 | AA11: 16.85 | AB11: 2
A12: 2 | B12: Адарич Анна Жданова Юлия Гладышева Юлия | C12: КГБУ СП "СШ"Жемчужина Алтая" | D12: Барнаул Алтайский край | E12: 7.3 | F12: 8 | G12: 7.8 | H12: 7.7 | I12: 7.3 | J12: 8 | K12: 7.75 | L12: 7.9 | M12: 7.9 | N12: 7.9 | O12: 8 | P12: 7.9 | Q12: 8 | R12: 7.9 | S12: 2.1 | T12: 2.1 | U12: 1.05 | Z12: 0 | AA12: 16.7 | AB12: 3
A13: 7 | B13: Пирмамедова Алиса Артемова Стефания Родионова Софья | C13: МБУ СП "СШ №6", АКООПРС "Город Мастеров" | D13: Барнаул Алтайский край | E13: 7.3 | F13: 7.4 | G13: 7.8 | H13: 7.6 | I13: 7.3 | J13: 7.8 | K13: 7.5 | L13: 7.7 | M13: 7.4 | N13: 8 | O13: 8 | P13: 7.4 | Q13: 8 | R13: 7.85 | S13: 2.1 | T13: 2.1 | U13: 1.05 | Z13: 0 | AA13: 16.4 | AB13: 4
A14: 18 | B14: Куранда Александра Астахова Софья Перелыгина Полина | C14: МБУ СП "СШ №6", АКООПРС "Город Мастеров" | D14: Барнаул Алтайский край | E14: 7.5 | F14: 7.3 | G14: 8 | H14: 7.4 | I14: 7.3 | J14: 8 | K14: 7.45 | L14: 7.6 | M14: 7.5 | N14: 7.9 | O14: 7.9 | P14: 7.5 | Q14: 7.9 | R14: 7.75 | S14: 2.1 | T14: 2.1 | U14: 1.05 | Z14: 0 | AA14: 16.25 | AB14: 5
A15: 15 | B15: Дианова Янина Иляхина Анна Лобищева Валерия | C15: МБУ СП "СШ №6", АКООПРС "Город Мастеров" | D15: Барнаул Алтайский край | E15: 7.1 | F15: 7.6 | G15: 7.8 | H15: 7.3 | I15: 7.1 | J15: 7.8 | K15: 7.45 | L15: 7.6 | M15: 7.3 | N15: 7.7 | O15: 7.7 | P15: 7.3 | Q15: 7.7 | R15: 7.65 | S15: 2.1 | T15: 2.1 | U15: 1.05 | Z15: 0 | AA15: 16.15 | AB15: 6
A16: 20 | B16: Назарова Мария Щеклеина Медина Гриднева Анастасия | C16: МБУ СП "СШ №6", АКООПРС "Город Мастеров" | D16: Барнаул Алтайский край | E16: 7 | F16: 7.3 | G16: 7.5 | H16: 7.4 | I16: 7 | J16: 7.5 | K16: 7.35 | L16: 7.6 | M16: 7.4 | N16: 7.8 | O16: 7.8 | P16: 7.4 | Q16: 7.8 | R16: 7.7 | S16: 2.1 | T16: 2.1 | U16: 1.05 | Z16: 0 | AA16: 16.1 | AB16: 7
A17: 13 | B17: Погорелая Екатерина Пичугина Екатерина Тоскуева Анна | C17: МБУ СП «СШ « Победа» | D17: Барнаул Алтайский край | E17: 7.6 | F17: 7.2 | G17: 7.6 | H17: 7.3 | I17: 7.2 | J17: 7.6 | K17: 7.45 | L17: 7.5 | M17: 7.2 | N17: 7.4 | O17: 7.7 | P17: 7.2 | Q17: 7.7 | R17: 7.45 | S17: 2.1 | T17: 2.1 | U17: 1.05 | Z17: 0 | AA17: 15.95 | AB17: 8
B19: Главный судья: | I19: Л.Н. Ляшенко | O19: Главный секретарь: | V19: Т.В.Хоружева
B21: Заместитель главного судьи: | I21: Н.К. Гринина | O21: Заместитель главного секретаря | V21: Д.А.Гринина

Sheet ИМ 6-8
H3: П р о т о к о л | X3: г. Барнаул | AA3: 14-17.11.2018
E4: ПЕРВЕНСТВО АЛТАЙСКОГО КРАЯ ПО СПОРТИВНОЙ АЭРОБИКЕ "СОЗВЕЗДИЕ СИБИРИ"
E5: ФИНАЛ
X6: ИМ 6-8 лет
A8: № | B8: Участник | C8: Клуб | D8: Регион | E8: Исполнение | L8: Артистичность | S8: Сложность | V8: Пирамида | W8: Сбавки | AA8: Общий балл | AB8: Место
E9: 1 | F9: 2 | G9: 3 | H9: 4 | I9: МIN "А" | J9: МАХ "А" | K9: СР | L9: 5 | M9: 6 | N9: 7 | O9: 8 | P9: МIN "И" | Q9: МАХ "И" | R9: СР | S9: 9 | T9: 10 | U9: СР | V9: 1 | W9: Э | X9: Л | Y9: Глав. судья | Z9: общ
A10: 7 | B10: Бурдунюк Глеб | C10: МБУ СП «СШ « Победа» | D10: Барнаул Алтайский край | E10: 7.5 | F10: 7.4 | G10: 7.7 | H10: 7.9 | I10: =MIN(E10,F10,G10,H10) -> 7.4 | J10: =MAX(E10,F10,G10,H10) -> 7.9 | K10: =(E10+F10+G10+H10-I10-J10)/2 -> 7.6 | L10: 7.7 | M10: 7.4 | N10: 7.4 | O10: 7.8 | P10: =MIN(L10,M10,N10,O10) -> 7.4 | Q10: =MAX(L10,M10,N10,O10) -> 7.8 | R10: =(L10+M10+N10+O10-P10-Q10)/2 -> 7.55 | S10: 1.9 | T10: 1.9 | U10: =(S10+T10)/4 -> 0.95 | Z10: =W10+X10+Y10 -> 0 | AA10: =K10+R10+U10+V10-Z10 -> 16.1 | AB10: =RANK(AA10,$AA$9:$AA$16,0) -> 1
A11: 2 | B11: Грищенко Кирилл | C11: МБУ СП "СШ №6", АКООПРС "Город Мастеров" | D11: Барнаул Алтайский край | E11: 7.6 | F11: 7.3 | G11: 7.4 | H11: 7.1 | I11: 7.1 | J11: 7.6 | K11: 7.35 | L11: 7.5 | M11: 7.5 | N11: 7.6 | O11: 8 | P11: 7.5 | Q11: 8 | R11: 7.55 | S11: 2.1 | T11: 2.1 | U11: 1.05 | Z11: 0 | AA11: 15.95 | AB11: =RANK(AA11,$AA$9:$AA$16,0) -> 2
A12: 4 | B12: Арнаутов Арсений | C12: МБУ СП "СШ №6", АКООПРС "Город Мастеров" | D12: Барнаул Алтайский край | E12: 7 | F12: 7.3 | G12: 7.2 | H12: 7.2 | I12: 7 | J12: 7.3 | K12: 7.2 | L12: 7.6 | M12: 7.2 | N12: 7.7 | O12: 7.8 | P12: 7.2 | Q12: 7.8 | R12: 7.65 | S12: 1.7 | T12: 1.7 | U12: 0.85 | Z12: 0 | AA12: 15.7 | AB12: 3
A13: 6 | B13: Жиганов Максим | C13: МБУ СП "СШ №6", АКООПРС "Город Мастеров" | D13: Барнаул Алтайский край | E13: 7.1 | F13: 7.2 | G13: 7.2 | H13: 7.3 | I13: 7.1 | J13: 7.3 | K13: 7.2 | L13: 7.5 | M13: 7.4 | N13: 7.4 | O13: 7.9 | P13: 7.4 | Q13: 7.9 | R13: 7.45 | S13: 2.1 | T13: 2.1 | U13: 1.05 | Z13: 0 | AA13: 15.7 | AB13: 4
A14: 5 | B14: Диженков Юрий | C14: ДЮСШ № 2 | D14: Новосибирск Новосибирская область | E14: 7.2 | F14: 7.2 | G14: 6.9 | H14: 7.5 | I14: 6.9 | J14: 7.5 | K14: 7.2 | L14: 7.5 | M14: 7.5 | N14: 7.5 | O14: 7.5 | P14: 7.5 | Q14: 7.5 | R14: 7.5 | S14: 1.9 | T14: 1.9 | U14: 0.95 | Z14: 0 | AA14: 15.65 | AB14: =RANK(AA14,$AA$9:$AA$16,0) -> 5
A15: 3 | B15: Агапов Александр | C15: КГБУ СП КДЮСШ | D15: Барнаул Алтайский край | E15: 6.5 | F15: 7 | G15: 6.7 | H15: 6.9 | I15: 6.5 | J15: 7 | K15: 6.8 | L15: 7.2 | M15: 7.2 | N15: 7.2 | O15: 7.3 | P15: 7.2 | Q15: 7.3 | R15: 7.2 | S15: 1.5 | T15: 1.5 | U15: 0.75 | Z15: 0 | AA15: 14.75 | AB15: =RANK(AA15,$AA$9:$AA$16,0) -> 6
A16: 1 | B16: Немировский Давид | C16: с/к " Реванш" | D16: Барнаул Алтайский край | E16: 6.7 | F16: 7 | G16: 7 | H16: 6.7 | I16: 6.7 | J16: 7 | K16: 6.85 | L16: 7 | M16: 7 | N16: 7.1 | O16: 7.5 | P16: 7 | Q16: 7.5 | R16: 7.05 | S16: 1.4 | T16: 1.4 | U16: 0.7 | Z16: 0 | AA16: 14.6 | AB16: =RANK(AA16,$AA$9:$AA$16,0) -> 7
B18: Главный судья: | I18: Л.Н. Ляшенко | O18: Главный секретарь: | V18: Т.В.Хоружева
B20: Заместитель главного судьи: | I20: Н.К. Гринина | O20: Заместитель главного секретаря | V20: Д.А.Гринина

Sheet ГР 6-8
H3: П р о т о к о л | X3: г. Барнаул | AA3: 14-17.11.2018
E4: ПЕРВЕНСТВО АЛТАЙСКОГО КРАЯ ПО СПОРТИВНОЙ АЭРОБИКЕ "СОЗВЕЗДИЕ СИБИРИ"
E5: ФИНАЛ
X6: ГР 6-8 лет
A8: № | B8: Участник | C8: Клуб | D8: Регион | E8: Исполнение | L8: Артистичность | S8: Сложность | V8: Пирамида | W8: Сбавки | AA8: Общий балл | AB8: Место
E9: 1 | F9: 2 | G9: 3 | H9: 4 | I9: МIN "А" | J9: МАХ "А" | K9: СР | L9: 5 | M9: 6 | N9: 7 | O9: 8 | P9: МIN "И" | Q9: МАХ "И" | R9: СР | S9: 9 | T9: 10 | U9: СР | V9: 1 | W9: Э | X9: Л | Y9: Глав. судья | Z9: общ
A10: 9 | B10: Кузнецова Дарья Струкова Анастасия Кершман Дарья Головачева Полина Черенцева София | C10: МБУ СП «СШ « Победа» | D10: Барнаул Алтайский край | E10: 8 | F10: 7.9 | G10: 8.2 | H10: 8.3 | I10: =MIN(E10,F10,G10,H10) -> 7.9 | J10: =MAX(E10,F10,G10,H10) -> 8.3 | K10: =(E10+F10+G10+H10-I10-J10)/2 -> 8.1 | L10: 8.2 | M10: 7.7 | N10: 7.8 | O10: 7.9 | P10: =MIN(L10,M10,N10,O10) -> 7.7 | Q10: =MAX(L10,M10,N10,O10) -> 8.2 | R10: =(L10+M10+N10+O10-P10-Q10)/2 -> 7.85 | S10: 2.1 | T10: 2.1 | U10: =(S10+T10)/4 -> 1.05 | Z10: =W10+X10+Y10 -> 0 | AA10: =K10+R10+U10+V10-Z10 -> 17 | AB10: =RANK(AA10,$AA$9:$AA$17,0) -> 1
A11: 1 | B11: Пирмамедова Алиса Артемова Стефания Родионова Софья Астахова Софья Жиганов Максим | C11: МБУ СП "СШ №6", АКООПРС "Город Мастеров" | D11: Барнаул Алтайский край | E11: 7.3 | F11: 7.7 | G11: 7.6 | H11: 7.7 | I11: 7.3 | J11: 7.7 | K11: 7.65 | L11: 8 | M11: 7.3 | N11: 7.9 | O11: 7.9 | P11: 7.3 | Q11: 8 | R11: 7.9 | S11: 2.1 | T11: 2.1 | U11: 1.05 | Z11: 0 | AA11: 16.6 | AB11: 2
A12: 8 | B12: Лобищева Валерия Иляхина Анна Куранда Александра Перелыгина Полина Дианова Янина | C12: МБУ СП "СШ №6", АКООПРС "Город Мастеров" | D12: Барнаул Алтайский край | E12: 7.3 | F12: 7.5 | G12: 7.8 | H12: 7.4 | I12: 7.3 | J12: 7.8 | K12: 7.45 | L12: 7.8 | M12: 7.5 | N12: 8 | O12: 8 | P12: 7.5 | Q12: 8 | R12: 7.9 | S12: 2.1 | T12: 2.1 | U12: 1.05 | Z12: 0 | AA12: 16.4 | AB12: 3
A13: 6 | B13: Грищенко Кирилл Арнаутов Арсений Гриднева Анастасия Назарова Мария Щеклеина Медина | C13: МБУ СП "СШ №6", АКООПРС "Город Мастеров" | D13: Барнаул Алтайский край | E13: 7 | F13: 7.6 | G13: 7.6 | H13: 7.5 | I13: 7 | J13: 7.6 | K13: 7.55 | L13: 7.7 | M13: 7.4 | N13: 7.6 | O13: 8 | P13: 7.4 | Q13: 8 | R13: 7.65 | S13: 2.1 | T13: 2.1 | U13: 1.05 | Z13: 0 | AA13: 16.25 | AB13: 4
A14: 3 | B14: Адарич Анна Жданова Юлия Гладышева Юлия Романосова Алина Лымарь Яна | C14: КГБУ СП "СШ"Жемчужина Алтая" | D14: Барнаул Алтайский край | E14: 7.3 | F14: 7.3 | G14: 7.6 | H14: 7.6 | I14: 7.3 | J14: 7.6 | K14: 7.45 | L14: 7.8 | M14: 7.7 | N14: 7.7 | O14: 7.9 | P14: 7.7 | Q14: 7.9 | R14: 7.75 | S14: 2.1 | T14: 2.1 | U14: 1.05 | Z14: 0 | AA14: 16.25 | AB14: 5
A15: 10 | B15: Погорелая Екатерина Пичугина Екатерина Тоскуева Анна Красикова Полина Аксёнова Елизавета | C15: МБУ СП «СШ « Победа» | D15: Барнаул Алтайский край | E15: 7.6 | F15: 7.4 | G15: 7.6 | H15: 7.3 | I15: 7.3 | J15: 7.6 | K15: 7.5 | L15: 7.6 | M15: 7.4 | N15: 7.4 | O15: 7.8 | P15: 7.4 | Q15: 7.8 | R15: 7.5 | S15: 2.1 | T15: 2.1 | U15: 1.05 | Z15: 0 | AA15: 16.05 | AB15: 6
A16: 7 | B16: Морозова Василиса Вялкова Тамила Мосеева Александра Рогулева Екатерина Воробьева Кристина | C16: ДООЦ Спутник | D16: Новосибирск Новосибирская область | E16: 7 | F16: 7.2 | G16: 7.2 | H16: 7.4 | I16: 7 | J16: 7.4 | K16: 7.2 | L16: 7 | M16: 7.4 | N16: 7.3 | O16: 7.6 | P16: 7 | Q16: 7.6 | R16: 7.35 | S16: 1.6 | T16: 1.6 | U16: 0.8 | Z16: 0 | AA16: 15.35 | AB16: 7
A17: 5 | B17: Зайбель Маргарита Забутырина Мария Тятюхина Дарья Дядичкина Диана Ревва Алиса | C17: с/к " Реванш" | D17: Барнаул Алтайский край | E17: 6.4 | F17: 6.7 | G17: 6.9 | H17: 7 | I17: 6.4 | J17: 7 | K17: 6.8 | L17: 7.7 | M17: 7.2 | N17: 7.1 | O17: 7.4 | P17: 7.1 | Q17: 7.7 | R17: 7.3 | S17: 1.5 | T17: 1.5 | U17: 0.75 | Z17: 0 | AA17: 14.85 | AB17: 8
B19: Главный судья: | I19: Л.Н. Ляшенко | O19: Главный секретарь: | V19: Т.В.Хоружева
B21: Заместитель главного судьи: | I21: Н.К. Гринина | O21: Заместитель главного секретаря | V21: Д.А.Гринина

Sheet СП 6-8
H3: П р о т о к о л | X3: г. Барнаул | AA3: 14-17.11.2018
E4: ПЕРВЕНСТВО АЛТАЙСКОГО КРАЯ ПО СПОРТИВНОЙ АЭРОБИКЕ "СОЗВЕЗДИЕ СИБИРИ"
E5: ФИНАЛ
X6: СП 6-8 лет
A8: № | B8: Участник | C8: Клуб | D8: Регион | E8: Исполнение | L8: Артистичность | S8: Сложность | V8: Пирамида | W8: Сбавки | AA8: Общий балл | AB8: Место
E9: 1 | F9: 2 | G9: 3 | H9: 4 | I9: МIN "А" | J9: МАХ "А" | K9: СР | L9: 5 | M9: 6 | N9: 7 | O9: 8 | P9: МIN "И" | Q9: МАХ "И" | R9: СР | S9: 9 | T9: 10 | U9: СР | V9: 1 | W9: Э | X9: Л | Y9: Глав. судья | Z9: общ
A10: 5 | B10: Жиганов Максим Астахова Софья | C10: МБУ СП "СШ №6", АКООПРС "Город Мастеров" | D10: Барнаул Алтайский край | E10: 7.6 | F10: 7.5 | G10: 7.5 | H10: 7.4 | I10: =MIN(E10,F10,G10,H10) -> 7.4 | J10: =MAX(E10,F10,G10,H10) -> 7.6 | K10: =(E10+F10+G10+H10-I10-J10)/2 -> 7.5 | L10: 7.6 | M10: 7.4 | N10: 7.7 | O10: 7.7 | P10: =MIN(L10,M10,N10,O10) -> 7.4 | Q10: =MAX(L10,M10,N10,O10) -> 7.7 | R10: =(L10+M10+N10+O10-P10-Q10)/2 -> 7.65 | S10: 2.1 | T10: 2.1 | U10: =(S10+T10)/4 -> 1.05 | Z10: =W10+X10+Y10 -> 0 | AA10: =K10+R10+U10+V10-Z10 -> 16.2 | AB10: =RANK(AA10,$AA$9:$AA$17,0) -> 1
A11: 1 | B11: Грищенко Кирилл Родионова Софья | C11: МБУ СП "СШ №6", АКООПРС "Город Мастеров" | D11: Барнаул Алтайский край | E11: 7.5 | F11: 7.7 | G11: 7.6 | H11: 7.5 | I11: 7.5 | J11: 7.7 | K11: 7.55 | L11: 7.4 | M11: 7.5 | N11: 7.8 | O11: 7.6 | P11: 7.4 | Q11: 7.8 | R11: 7.55 | S11: 2.1 | T11: 2.1 | U11: 1.05 | Z11: 0 | AA11: 16.15 | AB11: 2
A12: 8 | B12: Бурдунюк Глеб Ветчинкина Дарья | C12: МБУ СП «СШ « Победа» | D12: Барнаул Алтайский край | E12: 7.4 | F12: 7.6 | G12: 7.5 | H12: 7.8 | I12: 7.4 | J12: 7.8 | K12: 7.55 | L12: 7.4 | M12: 7.6 | N12: 7.5 | O12: 7.5 | P12: 7.4 | Q12: 7.6 | R12: 7.5 | S12: 1.9 | T12: 1.9 | U12: 0.95 | Z12: 0 | AA12: 16 | AB12: 3
A13: 3 | B13: Арнаутов Арсений Гриднева Анастасия | C13: МБУ СП "СШ №6", АКООПРС "Город Мастеров" | D13: Барнаул Алтайский край | E13: 7.3 | F13: 7.4 | G13: 7.4 | H13: 7.3 | I13: 7.3 | J13: 7.4 | K13: 7.35 | L13: 7.7 | M13: 7.4 | N13: 7.6 | O13: 7.5 | P13: 7.4 | Q13: 7.7 | R13: 7.55 | S13: 2.1 | T13: 2.1 | U13: 1.05 | Z13: 0 | AA13: 15.95 | AB13: 4
A14: 6 | B14: Диженков Юрий Домнышева Юлия | C14: ДЮСШ № 2 | D14: Новосибирск Новосибирская область | E14: 7 | F14: 6.9 | G14: 6.8 | H14: 6.8 | I14: 6.8 | J14: 7 | K14: 6.85 | L14: 7.3 | M14: 6.9 | N14: 7.3 | O14: 7.1 | P14: 6.9 | Q14: 7.3 | R14: 7.2 | S14: 1.9 | T14: 1.9 | U14: 0.95 | Z14: 0 | AA14: 15 | AB14: 5
A15: 7 | B15: Коновалова Полина Лоор Владислав | C15: КГБУ СП КДЮСШ | D15: Барнаул Алтайский край | E15: 6.9 | F15: 7.1 | G15: 6.8 | H15: 6.8 | I15: 6.8 | J15: 7.1 | K15: 6.85 | L15: 7.1 | M15: 6.9 | N15: 7 | O15: 7 | P15: 6.9 | Q15: 7.1 | R15: 7 | S15: 1.7 | T15: 1.7 | U15: 0.85 | Z15: 0 | AA15: 14.7 | AB15: 6
A16: 9 | B16: Агапов Александр Герасименко Анна | C16: КГБУ СП КДЮСШ | D16: Барнаул Алтайский край | E16: 6.8 | F16: 6.9 | G16: 6.6 | H16: 6.6 | I16: 6.6 | J16: 6.9 | K16: 6.7 | L16: 7.2 | M16: 6.7 | N16: 7.2 | O16: 7.1 | P16: 6.7 | Q16: 7.2 | R16: 7.15 | S16: 1.7 | T16: 1.7 | U16: 0.85 | Z16: 0 | AA16: 14.7 | AB16: 7
A17: 2 | B17: Немировский Давид Ревва Алиса | C17: с/к " Реванш" | D17: Барнаул Алтайский край | E17: 6.7 | F17: 6.8 | G17: 6.5 | H17: 6.9 | I17: 6.5 | J17: 6.9 | K17: 6.75 | L17: 7.4 | M17: 6.8 | N17: 7.1 | O17: 7.1 | P17: 6.8 | Q17: 7.4 | R17: 7.1 | S17: 0.9 | T17: 0.9 | U17: 0.45 | Y17: 0.2 | Z17: 0.2 | AA17: 14.1 | AB17: =RANK(AA17,$AA$9:$AA$17,0) -> 8
B18: Главный судья: | I18: Л.Н. Ляшенко | O18: Главный секретарь: | V18: Т.В.Хоружева
B20: Заместитель главного судьи: | I20: Н.К. Гринина | O20: Заместитель главного секретаря | V20: Д.А.Гринина
